[Event "Early-Titled-Tuesday-Blitz-March-12-2024"]
[Site "Chess.com"]
[Date "2024.03.12"]
[Round "5"]
[White "Kotlyar_K"]
[Black "Akhayan"]
[Result "0-1"]
[WhiteElo "2590"]
[BlackElo "2326"]
[TimeControl "180+1"]
[EndTime "8:51:58 PDT"]
[Termination "Akhayan won by resignation"]

1. f4 {[%clk 0:03:00.9]} 1... e5 {[%clk 0:02:54.2]} 2. fxe5 {[%clk 0:03:01.8]}
2... d6 {[%clk 0:02:54.8]} 3. Nf3 {[%clk 0:03:02.1]} 3... dxe5 {[%clk
0:02:54.7]} 4. e4 {[%clk 0:03:02.6]} 4... Nf6 {[%clk 0:02:54.3]} 5. Bc4 {[%clk
0:02:51.4]} 5... Bc5 {[%clk 0:02:52.6]} 6. Qe2 {[%clk 0:02:51.2]} 6... O-O
{[%clk 0:02:51.8]} 7. d3 {[%clk 0:02:48.7]} 7... Nc6 {[%clk 0:02:50.8]} 8. Bg5
{[%clk 0:02:25.7]} 8... Bg4 {[%clk 0:02:46.6]} 9. c3 {[%clk 0:02:25.9]} 9... Be7
{[%clk 0:02:40.7]} 10. O-O {[%clk 0:02:21.3]} 10... h6 {[%clk 0:02:40]} 11. Bh4
{[%clk 0:02:19.1]} 11... Na5 {[%clk 0:02:38.5]} 12. Bb5 {[%clk 0:02:17.5]} 12...
c6 {[%clk 0:02:38.4]} 13. Ba4 {[%clk 0:02:17.4]} 13... b5 {[%clk 0:02:38.8]} 14.
Bc2 {[%clk 0:02:18]} 14... Nb7 {[%clk 0:02:34.9]} 15. h3 {[%clk 0:02:17.9]}
15... Bxf3 {[%clk 0:02:34.1]} 16. Qxf3 {[%clk 0:02:17.2]} 16... Nc5 {[%clk
0:02:34.7]} 17. Nd2 {[%clk 0:02:09.5]} 17... Qd7 {[%clk 0:02:33.8]} 18. Rad1
{[%clk 0:02:05.4]} 18... Rad8 {[%clk 0:02:34.2]} 19. Bxf6 {[%clk 0:01:43.8]}
19... Bxf6 {[%clk 0:02:34.1]} 20. Qe3 {[%clk 0:01:44.3]} 20... Be7 {[%clk
0:02:27.8]} 21. Nf3 {[%clk 0:01:42.4]} 21... Ne6 {[%clk 0:02:26.7]} 22. Nxe5
{[%clk 0:01:31.5]} 22... Qc7 {[%clk 0:02:26.9]} 23. d4 {[%clk 0:01:31.7]} 23...
c5 {[%clk 0:02:26.2]} 24. Nf3 {[%clk 0:01:22.7]} 24... cxd4 {[%clk 0:02:24.5]}
25. cxd4 {[%clk 0:01:23.6]} 25... Qxc2 {[%clk 0:02:22.5]} 26. d5 {[%clk
0:01:23.1]} 26... Bc5 {[%clk 0:02:19.6]} 27. Nd4 {[%clk 0:01:20.8]} 27... Nxd4
{[%clk 0:02:19]} 28. Rxd4 {[%clk 0:01:21.7]} 28... Qxb2 {[%clk 0:02:09.2]} 0-1

[Event "Early-Titled-Tuesday-Blitz-March-12-2024"]
[Site "Chess.com"]
[Date "2024.03.12"]
[Round "5"]
[White "VojtechPlat"]
[Black "Cheer_Down"]
[Result "1-0"]
[WhiteElo "2869"]
[BlackElo "2418"]
[TimeControl "180+1"]
[EndTime "8:52:11 PDT"]
[Termination "VojtechPlat won by resignation"]

1. e4 {[%clk 0:02:59]} 1... e5 {[%clk 0:02:59.6]} 2. Nf3 {[%clk 0:02:58.8]} 2...
Nc6 {[%clk 0:02:59.4]} 3. Bb5 {[%clk 0:02:58.7]} 3... a6 {[%clk 0:02:59.1]} 4.
Ba4 {[%clk 0:02:58.6]} 4... Nf6 {[%clk 0:02:58.9]} 5. d4 {[%clk 0:02:58.7]} 5...
exd4 {[%clk 0:02:56.6]} 6. O-O {[%clk 0:02:58.5]} 6... Be7 {[%clk 0:02:49.9]} 7.
Re1 {[%clk 0:02:58.3]} 7... b5 {[%clk 0:01:59.4]} 8. e5 {[%clk 0:02:58.2]} 8...
Nxe5 {[%clk 0:01:57]} 9. Nxe5 {[%clk 0:02:56.9]} 9... bxa4 {[%clk 0:01:55.3]}
10. Qxd4 {[%clk 0:02:54.4]} 10... O-O {[%clk 0:01:55.4]} 11. Qxa4 {[%clk
0:02:53.4]} 11... Rb8 {[%clk 0:01:53.6]} 12. c4 {[%clk 0:02:53.1]} 12... Re8
{[%clk 0:01:42.6]} 13. Nc3 {[%clk 0:02:47.6]} 13... Bd6 {[%clk 0:01:42.7]} 14.
Bf4 {[%clk 0:02:37.8]} 14... Rxb2 {[%clk 0:01:34.1]} 15. Nd3 {[%clk 0:02:37.3]}
15... Rb8 {[%clk 0:01:20.8]} 16. Bxd6 {[%clk 0:02:37]} 16... cxd6 {[%clk
0:01:21.1]} 17. Rxe8+ {[%clk 0:02:33.9]} 17... Qxe8 {[%clk 0:01:20.5]} 18. Re1
{[%clk 0:02:33.3]} 18... Qd8 {[%clk 0:01:20.7]} 19. Qa3 {[%clk 0:02:31.9]} 19...
Rb6 {[%clk 0:01:11.1]} 20. Qa5 {[%clk 0:02:31.4]} 20... Qc7 {[%clk 0:00:31.1]}
21. Nd5 {[%clk 0:02:30.8]} 21... Qxc4 {[%clk 0:00:30.1]} 22. Qxb6 {[%clk
0:02:28.9]} 22... Qxd5 {[%clk 0:00:28.2]} 23. Qd8+ {[%clk 0:02:28.4]} 1-0

[Event "Early-Titled-Tuesday-Blitz-March-12-2024"]
[Site "Chess.com"]
[Date "2024.03.12"]
[Round "5"]
[White "Yan_Dyomin2010"]
[Black "Real_taiatai"]
[Result "1-0"]
[WhiteElo "2725"]
[BlackElo "2538"]
[TimeControl "180+1"]
[EndTime "8:52:19 PDT"]
[Termination "Yan_Dyomin2010 won by resignation"]

1. e4 {[%clk 0:03:00.9]} 1... e6 {[%clk 0:02:54.8]} 2. d4 {[%clk 0:03:01.1]}
2... d5 {[%clk 0:02:55.6]} 3. e5 {[%clk 0:03:01.6]} 3... c5 {[%clk 0:02:55.2]}
4. c3 {[%clk 0:03:02.2]} 4... Nc6 {[%clk 0:02:55.1]} 5. Nf3 {[%clk 0:03:02.6]}
5... Bd7 {[%clk 0:02:55.2]} 6. Be2 {[%clk 0:03:02.1]} 6... Qb6 {[%clk
0:02:50.8]} 7. O-O {[%clk 0:02:52.2]} 7... Nge7 {[%clk 0:02:51.3]} 8. dxc5
{[%clk 0:02:33.6]} 8... Qxc5 {[%clk 0:02:51.2]} 9. Na3 {[%clk 0:02:11]} 9... Nf5
{[%clk 0:02:45.6]} 10. Bd3 {[%clk 0:02:04]} 10... Qa5 {[%clk 0:02:31.1]} 11.
Bxf5 {[%clk 0:02:00.9]} 11... exf5 {[%clk 0:02:32]} 12. Nc2 {[%clk 0:02:00.3]}
12... Be6 {[%clk 0:02:22.8]} 13. Re1 {[%clk 0:01:58.3]} 13... Be7 {[%clk
0:02:22.8]} 14. Bg5 {[%clk 0:01:56.6]} 14... Bc5 {[%clk 0:02:16.5]} 15. b4
{[%clk 0:01:55.2]} 15... Nxb4 {[%clk 0:02:06.2]} 16. cxb4 {[%clk 0:01:56.1]}
16... Bxb4 {[%clk 0:02:06.9]} 17. Nxb4 {[%clk 0:01:54]} 17... Qxb4 {[%clk
0:02:07.8]} 18. Rb1 {[%clk 0:01:53]} 18... Qa5 {[%clk 0:02:05.3]} 19. Bd2 {[%clk
0:01:31.1]} 19... Qxa2 {[%clk 0:02:01.2]} 20. Bb4 {[%clk 0:01:29.9]} 20... Rc8
{[%clk 0:01:46.9]} 21. Bd6 {[%clk 0:01:20.9]} 21... Qa6 {[%clk 0:01:38.9]} 22.
Ra1 {[%clk 0:01:19.1]} 22... Qb6 {[%clk 0:01:38.1]} 23. Qa4+ {[%clk 0:01:18.2]}
23... Rc6 {[%clk 0:01:35.3]} 24. Nd4 {[%clk 0:01:15.8]} 24... Kd7 {[%clk
0:01:34.4]} 25. Nxc6 {[%clk 0:01:15.5]} 1-0

[Event "Early-Titled-Tuesday-Blitz-March-12-2024"]
[Site "Chess.com"]
[Date "2024.03.12"]
[Round "5"]
[White "ulises2013"]
[Black "effefe"]
[Result "1-0"]
[WhiteElo "2708"]
[BlackElo "2399"]
[TimeControl "180+1"]
[EndTime "8:52:38 PDT"]
[Termination "ulises2013 won on time"]

1. e4 {[%clk 0:02:59.1]} 1... c5 {[%clk 0:02:58.2]} 2. g3 {[%clk 0:02:58.6]}
2... d6 {[%clk 0:02:58.6]} 3. Bg2 {[%clk 0:02:58.8]} 3... Nf6 {[%clk 0:02:59]}
4. Ne2 {[%clk 0:02:59.4]} 4... g6 {[%clk 0:02:59.5]} 5. O-O {[%clk 0:02:59.8]}
5... Bg7 {[%clk 0:03:00.2]} 6. c3 {[%clk 0:03:00.6]} 6... Nc6 {[%clk 0:03:00.2]}
7. d4 {[%clk 0:03:01.3]} 7... cxd4 {[%clk 0:03:00.3]} 8. cxd4 {[%clk 0:03:02.2]}
8... O-O {[%clk 0:03:00.7]} 9. h3 {[%clk 0:03:02.7]} 9... Bd7 {[%clk 0:02:54.9]}
10. Nbc3 {[%clk 0:03:02.6]} 10... Rc8 {[%clk 0:02:54.8]} 11. Be3 {[%clk
0:03:02.5]} 11... Na5 {[%clk 0:02:53.7]} 12. b3 {[%clk 0:03:02.7]} 12... b5
{[%clk 0:02:51.2]} 13. e5 {[%clk 0:03:02.7]} 13... Ne8 {[%clk 0:02:44.4]} 14. f4
{[%clk 0:03:02.7]} 14... b4 {[%clk 0:02:40]} 15. Ne4 {[%clk 0:03:02.6]} 15...
Bb5 {[%clk 0:02:36.4]} 16. Re1 {[%clk 0:02:57.6]} 16... Nc7 {[%clk 0:02:30.1]}
17. Qd2 {[%clk 0:02:54.4]} 17... Nd5 {[%clk 0:01:42.3]} 18. Bf2 {[%clk
0:02:53.9]} 18... Bxe2 {[%clk 0:01:30.8]} 19. Rxe2 {[%clk 0:02:51.8]} 19... Nc3
{[%clk 0:01:26.6]} 20. Nxc3 {[%clk 0:02:44.6]} 20... bxc3 {[%clk 0:01:19]} 21.
Qe1 {[%clk 0:02:39.4]} 21... dxe5 {[%clk 0:01:17.9]} 22. dxe5 {[%clk 0:02:38.9]}
22... Qc7 {[%clk 0:00:50.8]} 23. Rc1 {[%clk 0:02:36.7]} 23... Rfd8 {[%clk
0:00:45.3]} 24. Rec2 {[%clk 0:02:29.9]} 24... Rd3 {[%clk 0:00:14.6]} 25. Be4
{[%clk 0:02:28.8]} 1-0

[Event "Early-Titled-Tuesday-Blitz-March-12-2024"]
[Site "Chess.com"]
[Date "2024.03.12"]
[Round "5"]
[White "TregubovP"]
[Black "Langusto"]
[Result "0-1"]
[WhiteElo "2683"]
[BlackElo "2527"]
[TimeControl "180+1"]
[EndTime "8:52:47 PDT"]
[Termination "Langusto won by resignation"]

1. e4 {[%clk 0:03:00.9]} 1... e5 {[%clk 0:02:58.3]} 2. Nf3 {[%clk 0:02:59.2]}
2... Nc6 {[%clk 0:02:58.6]} 3. Bc4 {[%clk 0:02:57.6]} 3... Nf6 {[%clk
0:02:58.2]} 4. d3 {[%clk 0:02:57.6]} 4... Be7 {[%clk 0:02:58.1]} 5. O-O {[%clk
0:02:55.6]} 5... O-O {[%clk 0:02:58.6]} 6. a4 {[%clk 0:02:54.2]} 6... d6 {[%clk
0:02:57.4]} 7. a5 {[%clk 0:02:53.9]} 7... Rb8 {[%clk 0:02:55]} 8. Nc3 {[%clk
0:02:48.9]} 8... b6 {[%clk 0:02:51.8]} 9. a6 {[%clk 0:02:37.5]} 9... Na5 {[%clk
0:02:51.2]} 10. Ba2 {[%clk 0:02:31.7]} 10... c5 {[%clk 0:02:51.6]} 11. Nd5
{[%clk 0:02:17]} 11... Bxa6 {[%clk 0:02:48.1]} 12. c3 {[%clk 0:02:17.3]} 12...
Bb7 {[%clk 0:02:46.2]} 13. b4 {[%clk 0:02:12.4]} 13... Nc6 {[%clk 0:02:37.5]}
14. Bd2 {[%clk 0:02:10.6]} 14... a5 {[%clk 0:02:29.3]} 15. bxa5 {[%clk
0:01:57.9]} 15... Nxa5 {[%clk 0:02:30.2]} 16. Rb1 {[%clk 0:01:55.1]} 16... Nxd5
{[%clk 0:02:11.1]} 17. Bxd5 {[%clk 0:01:52]} 17... Bxd5 {[%clk 0:02:02.8]} 18.
exd5 {[%clk 0:01:52.2]} 18... c4 {[%clk 0:02:03.3]} 19. Be3 {[%clk 0:01:43.6]}
19... b5 {[%clk 0:02:01.1]} 20. Nd2 {[%clk 0:01:40]} 20... cxd3 {[%clk
0:01:56.3]} 21. Rb4 {[%clk 0:01:21.4]} 21... f5 {[%clk 0:01:49.8]} 22. f3 {[%clk
0:01:21.6]} 22... Qc7 {[%clk 0:01:44.7]} 23. Qa1 {[%clk 0:01:15.1]} 23... Nc4
{[%clk 0:01:41.4]} 24. Re1 {[%clk 0:01:08.2]} 24... Nxe3 {[%clk 0:01:31.1]} 25.
Rxe3 {[%clk 0:01:07.7]} 25... Qc5 {[%clk 0:01:30.3]} 0-1

[Event "Early-Titled-Tuesday-Blitz-March-12-2024"]
[Site "Chess.com"]
[Date "2024.03.12"]
[Round "5"]
[White "Goryachkina"]
[Black "Road2GM3000"]
[Result "1-0"]
[WhiteElo "2677"]
[BlackElo "2480"]
[TimeControl "180+1"]
[EndTime "8:52:47 PDT"]
[Termination "Goryachkina won by resignation"]

1. e4 {[%clk 0:03:00.1]} 1... c5 {[%clk 0:02:59.9]} 2. Nf3 {[%clk 0:02:59.9]}
2... d6 {[%clk 0:03:00.2]} 3. d4 {[%clk 0:02:58.3]} 3... cxd4 {[%clk 0:03:01.1]}
4. Qxd4 {[%clk 0:02:58.3]} 4... Nc6 {[%clk 0:03:00.8]} 5. Qd3 {[%clk 0:02:53.5]}
5... Nf6 {[%clk 0:03:00.2]} 6. Nc3 {[%clk 0:02:53.4]} 6... e6 {[%clk 0:02:58.7]}
7. Bf4 {[%clk 0:02:51]} 7... e5 {[%clk 0:02:48.5]} 8. Bg5 {[%clk 0:02:49]} 8...
Be6 {[%clk 0:02:49.2]} 9. O-O-O {[%clk 0:02:31.9]} 9... Be7 {[%clk 0:02:20.2]}
10. Bxf6 {[%clk 0:02:31.8]} 10... gxf6 {[%clk 0:02:20.4]} 11. Nd5 {[%clk
0:02:26]} 11... Qa5 {[%clk 0:02:15]} 12. Kb1 {[%clk 0:02:22.6]} 12... Rc8 {[%clk
0:02:12.1]} 13. Qb3 {[%clk 0:02:02.3]} 13... Bxd5 {[%clk 0:01:54.1]} 14. exd5
{[%clk 0:01:47.8]} 14... Nb4 {[%clk 0:01:53.1]} 15. a3 {[%clk 0:01:38.7]} 15...
Na6 {[%clk 0:01:09.2]} 16. Qxb7 {[%clk 0:01:33.6]} 16... Qc7 {[%clk 0:01:07.1]}
17. Bxa6 {[%clk 0:01:31.7]} 17... Qxc2+ {[%clk 0:01:05.6]} 18. Ka1 {[%clk
0:01:30.6]} 18... O-O {[%clk 0:01:03.1]} 19. Rc1 {[%clk 0:01:24.4]} 19... Qxc1+
{[%clk 0:01:01.2]} 20. Rxc1 {[%clk 0:01:25]} 20... Rxc1+ {[%clk 0:01:01.3]} 21.
Ka2 {[%clk 0:01:25.6]} 21... f5 {[%clk 0:00:59.4]} 22. Qxe7 {[%clk 0:01:25.1]}
1-0

[Event "Early-Titled-Tuesday-Blitz-March-12-2024"]
[Site "Chess.com"]
[Date "2024.03.12"]
[Round "5"]
[White "Susal_De_Silva"]
[Black "VD_coach"]
[Result "1-0"]
[WhiteElo "2707"]
[BlackElo "2512"]
[TimeControl "180+1"]
[EndTime "8:52:48 PDT"]
[Termination "Susal_De_Silva won by resignation"]

1. Nf3 {[%clk 0:03:00.9]} 1... Nf6 {[%clk 0:00:54.5]} 2. e3 {[%clk 0:02:59.5]}
2... g6 {[%clk 0:00:54.6]} 3. b3 {[%clk 0:02:59.4]} 3... Bg7 {[%clk 0:00:55.5]}
4. Bb2 {[%clk 0:03:00.3]} 4... O-O {[%clk 0:00:56.1]} 5. Be2 {[%clk 0:03:01]}
5... d6 {[%clk 0:00:56.5]} 6. d4 {[%clk 0:03:01.6]} 6... e5 {[%clk 0:00:56.8]}
7. dxe5 {[%clk 0:03:01.9]} 7... Ng4 {[%clk 0:00:57]} 8. Nc3 {[%clk 0:03:02.1]}
8... Nxe5 {[%clk 0:00:57.1]} 9. Qd2 {[%clk 0:03:02.3]} 9... Nbc6 {[%clk
0:00:56.9]} 10. O-O-O {[%clk 0:03:02.4]} 10... Nxf3 {[%clk 0:00:56.8]} 11. Bxf3
{[%clk 0:03:00.5]} 11... a5 {[%clk 0:00:57]} 12. h4 {[%clk 0:02:59.4]} 12... a4
{[%clk 0:00:55.5]} 13. Nxa4 {[%clk 0:02:59.5]} 13... Bxb2+ {[%clk 0:00:53.1]}
14. Kxb2 {[%clk 0:03:00.4]} 14... Rxa4 {[%clk 0:00:50.1]} 15. bxa4 {[%clk
0:03:00.2]} 15... Ne5 {[%clk 0:00:50.3]} 16. Bd5 {[%clk 0:02:58.6]} 16... Qf6
{[%clk 0:00:48.1]} 17. Qc3 {[%clk 0:02:50.2]} 17... Be6 {[%clk 0:00:47.8]} 18.
f4 {[%clk 0:02:43.5]} 18... Bxd5 {[%clk 0:00:42.5]} 19. fxe5 {[%clk 0:02:42.7]}
19... Qe6 {[%clk 0:00:42.5]} 20. exd6 {[%clk 0:02:37.8]} 20... cxd6 {[%clk
0:00:41.7]} 21. Qd4 {[%clk 0:02:26.6]} 21... Bc6 {[%clk 0:00:28.1]} 22. h5
{[%clk 0:02:24.2]} 22... Ra8 {[%clk 0:00:16]} 23. h6 {[%clk 0:02:23.4]} 23... f6
{[%clk 0:00:15.5]} 24. Qxd6 {[%clk 0:02:22.6]} 24... Qf7 {[%clk 0:00:15]} 25.
Rh4 {[%clk 0:02:18]} 25... g5 {[%clk 0:00:14.5]} 26. Rhd4 {[%clk 0:02:13.2]} 1-0

[Event "Early-Titled-Tuesday-Blitz-March-12-2024"]
[Site "Chess.com"]
[Date "2024.03.12"]
[Round "5"]
[White "waltereador"]
[Black "Renatoforf"]
[Result "1/2-1/2"]
[WhiteElo "2321"]
[BlackElo "1570"]
[TimeControl "180+1"]
[EndTime "8:53:12 PDT"]
[Termination "Game drawn by repetition"]

1. e4 {[%clk 0:02:52.4]} 1... c5 {[%clk 0:02:58]} 2. b4 {[%clk 0:02:51.7]} 2...
cxb4 {[%clk 0:02:56.5]} 3. a3 {[%clk 0:02:51.8]} 3... bxa3 {[%clk 0:02:54.6]} 4.
Bxa3 {[%clk 0:02:52.7]} 4... Nc6 {[%clk 0:02:54.4]} 5. Nf3 {[%clk 0:02:52.4]}
5... d6 {[%clk 0:02:54.2]} 6. Nc3 {[%clk 0:02:49.9]} 6... Nf6 {[%clk 0:02:53]}
7. Bc4 {[%clk 0:02:49.6]} 7... Bg4 {[%clk 0:02:49.2]} 8. h3 {[%clk 0:02:36.5]}
8... Bxf3 {[%clk 0:02:47.9]} 9. Qxf3 {[%clk 0:02:36.3]} 9... e6 {[%clk
0:02:44.9]} 10. O-O {[%clk 0:02:33.6]} 10... Be7 {[%clk 0:02:43.1]} 11. Bb5
{[%clk 0:02:26.8]} 11... O-O {[%clk 0:02:38.8]} 12. Bxc6 {[%clk 0:02:27]} 12...
bxc6 {[%clk 0:02:38.3]} 13. d4 {[%clk 0:02:27.7]} 13... Rb8 {[%clk 0:02:26.5]}
14. e5 {[%clk 0:02:24]} 14... dxe5 {[%clk 0:02:24.3]} 15. Bxe7 {[%clk
0:02:21.4]} 15... Qxe7 {[%clk 0:02:23.3]} 16. dxe5 {[%clk 0:02:21.7]} 16... Nd5
{[%clk 0:02:22.4]} 17. Ne4 {[%clk 0:02:22]} 17... Rb2 {[%clk 0:02:14.5]} 18. c4
{[%clk 0:02:21.8]} 18... f5 {[%clk 0:02:09.7]} 19. cxd5 {[%clk 0:02:05.4]} 19...
fxe4 {[%clk 0:02:07.5]} 20. d6 {[%clk 0:02:05.6]} 20... exf3 {[%clk 0:02:04.8]}
21. dxe7 {[%clk 0:02:05.5]} 21... Re8 {[%clk 0:02:04]} 22. Rxa7 {[%clk
0:02:03.9]} 22... fxg2 {[%clk 0:02:03.1]} 23. Kxg2 {[%clk 0:02:04.2]} 23... Kf7
{[%clk 0:02:01.7]} 24. Rc1 {[%clk 0:02:01.7]} 24... Rb6 {[%clk 0:01:53.4]} 25.
Rc7 {[%clk 0:02:00.9]} 25... Rxe7 {[%clk 0:01:52.3]} 26. R1xc6 {[%clk
0:02:00.4]} 26... Rxc6 {[%clk 0:01:49.8]} 27. Rxc6 {[%clk 0:02:00.3]} 27... Kg6
{[%clk 0:01:49.4]} 28. Kg3 {[%clk 0:01:58.6]} 28... Kf5 {[%clk 0:01:48.6]} 29.
Rc5 {[%clk 0:01:48.7]} 29... g5 {[%clk 0:01:45]} 30. f3 {[%clk 0:01:47]} 30...
h5 {[%clk 0:01:44.1]} 31. h4 {[%clk 0:01:46.7]} 31... gxh4+ {[%clk 0:01:41.6]}
32. Kxh4 {[%clk 0:01:46.3]} 32... Kf4 {[%clk 0:01:38.5]} 33. Kxh5 {[%clk
0:01:46.5]} 33... Kf5 {[%clk 0:01:33.9]} 34. Kh4 {[%clk 0:01:43.5]} 34... Kf4
{[%clk 0:01:32.9]} 35. Kh5 {[%clk 0:01:43.7]} 35... Kf5 {[%clk 0:01:32.3]} 36.
Kh6 {[%clk 0:01:42.2]} 36... Ra7 {[%clk 0:01:28.3]} 37. Rb5 {[%clk 0:01:36.7]}
37... Rd7 {[%clk 0:01:24.5]} 38. Rc5 {[%clk 0:01:33.3]} 38... Rd3 {[%clk
0:01:21.1]} 39. Kg7 {[%clk 0:01:30.3]} 39... Rxf3 {[%clk 0:01:20.3]} 40. Kf7
{[%clk 0:01:30.5]} 40... Ra3 {[%clk 0:01:18.2]} 41. Ke7 {[%clk 0:01:29.9]} 41...
Ra7+ {[%clk 0:01:15.1]} 42. Kd6 {[%clk 0:01:30.1]} 42... Ra6+ {[%clk 0:01:14.8]}
43. Kd7 {[%clk 0:01:30.5]} 43... Ra7+ {[%clk 0:01:14.4]} 44. Kd6 {[%clk
0:01:30.9]} 44... Ra6+ {[%clk 0:01:14.4]} 45. Kd7 {[%clk 0:01:31.4]} 45... Ra7+
{[%clk 0:01:14.2]} 46. Kd6 {[%clk 0:01:31.3]} 1/2-1/2

[Event "Early-Titled-Tuesday-Blitz-March-12-2024"]
[Site "Chess.com"]
[Date "2024.03.12"]
[Round "5"]
[White "Javylavilla"]
[Black "Pedrada88"]
[Result "0-1"]
[WhiteElo "2362"]
[BlackElo "2541"]
[TimeControl "180+1"]
[EndTime "8:53:14 PDT"]
[Termination "Pedrada88 won by resignation"]

1. e4 {[%clk 0:01:59.4]} 1... c6 {[%clk 0:02:59.5]} 2. c4 {[%clk 0:01:58.9]}
2... g6 {[%clk 0:02:59.5]} 3. Nc3 {[%clk 0:01:56.9]} 3... Bg7 {[%clk 0:02:59.8]}
4. d4 {[%clk 0:01:56.5]} 4... d6 {[%clk 0:02:59]} 5. Nf3 {[%clk 0:01:54.2]} 5...
Bg4 {[%clk 0:02:58.9]} 6. Be2 {[%clk 0:01:54.1]} 6... Qb6 {[%clk 0:02:59]} 7. d5
{[%clk 0:01:50]} 7... Bxf3 {[%clk 0:02:36.3]} 8. Bxf3 {[%clk 0:01:49.3]} 8...
Qb4 {[%clk 0:02:36.9]} 9. O-O {[%clk 0:01:48.1]} 9... Qxc4 {[%clk 0:02:34.2]}
10. dxc6 {[%clk 0:01:47.2]} 10... Nxc6 {[%clk 0:02:24.5]} 11. Be3 {[%clk
0:01:45.2]} 11... Nf6 {[%clk 0:02:12]} 12. Rc1 {[%clk 0:01:42.2]} 12... O-O
{[%clk 0:02:09.7]} 13. b3 {[%clk 0:01:30.8]} 13... Qa6 {[%clk 0:02:05.6]} 14.
Na4 {[%clk 0:01:17.8]} 14... Ne5 {[%clk 0:01:54.1]} 15. Be2 {[%clk 0:01:16.8]}
15... Qa5 {[%clk 0:01:54.1]} 16. f4 {[%clk 0:01:12.4]} 16... Nc6 {[%clk
0:01:50.1]} 17. Bf3 {[%clk 0:00:45.5]} 17... Rac8 {[%clk 0:01:50.1]} 18. Qe2
{[%clk 0:00:40.7]} 18... Nd7 {[%clk 0:01:43.3]} 19. Rfd1 {[%clk 0:00:37.2]}
19... Nb6 {[%clk 0:01:28.9]} 20. Nxb6 {[%clk 0:00:36.4]} 20... axb6 {[%clk
0:01:28.6]} 21. Rd5 {[%clk 0:00:34.6]} 21... Qa3 {[%clk 0:01:21.8]} 22. Bxb6
{[%clk 0:00:32.8]} 22... Qxc1+ {[%clk 0:01:20.7]} 23. Rd1 {[%clk 0:00:30.5]}
23... Qxf4 {[%clk 0:01:20.4]} 0-1

[Event "Early-Titled-Tuesday-Blitz-March-12-2024"]
[Site "Chess.com"]
[Date "2024.03.12"]
[Round "5"]
[White "JoliyRoger"]
[Black "MikeWizard"]
[Result "1-0"]
[WhiteElo "2427"]
[BlackElo "2078"]
[TimeControl "180+1"]
[EndTime "8:53:16 PDT"]
[Termination "JoliyRoger won by resignation"]

1. d4 {[%clk 0:03:00.9]} 1... Nf6 {[%clk 0:02:59]} 2. c4 {[%clk 0:02:58.9]} 2...
g6 {[%clk 0:02:58.7]} 3. Nc3 {[%clk 0:02:58.3]} 3... Bg7 {[%clk 0:02:58.6]} 4.
e4 {[%clk 0:02:58.8]} 4... d6 {[%clk 0:02:58.4]} 5. Nf3 {[%clk 0:02:59.3]} 5...
O-O {[%clk 0:02:58.4]} 6. h3 {[%clk 0:02:59.7]} 6... c5 {[%clk 0:02:46.8]} 7. d5
{[%clk 0:03:00]} 7... a6 {[%clk 0:02:40.3]} 8. a4 {[%clk 0:02:59.2]} 8... Re8
{[%clk 0:02:34]} 9. Bd3 {[%clk 0:02:58.8]} 9... e6 {[%clk 0:02:31.1]} 10. O-O
{[%clk 0:02:59.2]} 10... exd5 {[%clk 0:02:28.4]} 11. cxd5 {[%clk 0:03:00.1]}
11... Nbd7 {[%clk 0:02:26.2]} 12. Bf4 {[%clk 0:03:00.7]} 12... Ne5 {[%clk
0:02:23.7]} 13. Nxe5 {[%clk 0:03:00]} 13... dxe5 {[%clk 0:02:23.9]} 14. Be3
{[%clk 0:03:00.9]} 14... Qc7 {[%clk 0:02:20.7]} 15. a5 {[%clk 0:03:01.1]} 15...
Rf8 {[%clk 0:02:13.8]} 16. Qd2 {[%clk 0:03:00.3]} 16... Ne8 {[%clk 0:02:10.4]}
17. Na4 {[%clk 0:02:59]} 17... c4 {[%clk 0:02:06.8]} 18. Rfc1 {[%clk 0:02:58.9]}
18... Nd6 {[%clk 0:02:04.6]} 19. b3 {[%clk 0:02:59.1]} 19... f5 {[%clk
0:01:51.8]} 20. Nb6 {[%clk 0:02:55.6]} 20... Rb8 {[%clk 0:01:40.5]} 21. Nxc4
{[%clk 0:02:54.9]} 21... Nxe4 {[%clk 0:01:34.2]} 22. Bxe4 {[%clk 0:02:51.6]}
22... fxe4 {[%clk 0:01:33.8]} 23. Nb6 {[%clk 0:02:39.2]} 23... Qf7 {[%clk
0:01:27]} 24. d6 {[%clk 0:02:36]} 24... Rd8 {[%clk 0:01:05.2]} 25. Rc7 {[%clk
0:02:29.4]} 25... Bd7 {[%clk 0:01:02.1]} 26. b4 {[%clk 0:02:24.2]} 26... Bf8
{[%clk 0:01:01]} 27. Bc5 {[%clk 0:02:20.8]} 27... Qe6 {[%clk 0:00:45.8]} 28. Re1
{[%clk 0:02:17.3]} 28... Bc6 {[%clk 0:00:44.8]} 29. Rd1 {[%clk 0:02:07.7]} 29...
Bb5 {[%clk 0:00:34.6]} 30. Qd5 {[%clk 0:01:57.6]} 30... Qxd5 {[%clk 0:00:23.8]}
31. Nxd5 {[%clk 0:01:58.5]} 31... Rd7 {[%clk 0:00:14.8]} 32. Nf6+ {[%clk
0:01:54.6]} 1-0

[Event "Early-Titled-Tuesday-Blitz-March-12-2024"]
[Site "Chess.com"]
[Date "2024.03.12"]
[Round "5"]
[White "FlemingA"]
[Black "AlexeiShirov"]
[Result "0-1"]
[WhiteElo "2418"]
[BlackElo "2865"]
[TimeControl "180+1"]
[EndTime "8:53:52 PDT"]
[Termination "AlexeiShirov won on time"]

1. e4 {[%clk 0:02:51.9]} 1... e5 {[%clk 0:02:58.7]} 2. Nf3 {[%clk 0:02:44]} 2...
Nc6 {[%clk 0:02:58.7]} 3. d4 {[%clk 0:02:44.7]} 3... exd4 {[%clk 0:02:58]} 4.
Nxd4 {[%clk 0:02:45.6]} 4... Qf6 {[%clk 0:02:58.2]} 5. Nf3 {[%clk 0:02:42.4]}
5... Bb4+ {[%clk 0:02:57.2]} 6. c3 {[%clk 0:02:42.8]} 6... Bc5 {[%clk
0:02:57.2]} 7. Be2 {[%clk 0:02:41.5]} 7... Nge7 {[%clk 0:02:55.2]} 8. Bg5 {[%clk
0:02:39.7]} 8... Qg6 {[%clk 0:02:54.4]} 9. O-O {[%clk 0:02:37.8]} 9... d6 {[%clk
0:02:53.3]} 10. Bh4 {[%clk 0:02:38.3]} 10... a5 {[%clk 0:02:49.4]} 11. Nbd2
{[%clk 0:02:37.2]} 11... O-O {[%clk 0:02:41]} 12. Nb3 {[%clk 0:02:26.3]} 12...
Bb6 {[%clk 0:02:36.5]} 13. Nbd4 {[%clk 0:02:10.3]} 13... Qxe4 {[%clk 0:02:25.5]}
14. Bd3 {[%clk 0:02:06.5]} 14... Qg4 {[%clk 0:02:23.1]} 15. h3 {[%clk
0:02:05.5]} 15... Qh5 {[%clk 0:02:18.6]} 16. g4 {[%clk 0:01:40.2]} 16... Qh6
{[%clk 0:02:17.6]} 17. Kg2 {[%clk 0:01:27.2]} 17... Ng6 {[%clk 0:02:05.8]} 18.
Bxg6 {[%clk 0:00:37.1]} 18... Qxg6 {[%clk 0:02:04.3]} 19. Nxc6 {[%clk
0:00:24.2]} 19... bxc6 {[%clk 0:02:03.2]} 20. Bg3 {[%clk 0:00:25.1]} 20... f5
{[%clk 0:01:42.4]} 21. g5 {[%clk 0:00:17.1]} 21... f4 {[%clk 0:01:41.8]} 22. Bh2
{[%clk 0:00:13.5]} 22... Qf5 {[%clk 0:01:37.3]} 23. Ng1 {[%clk 0:00:06.5]} 23...
Qxg5+ {[%clk 0:01:35.1]} 24. Kh1 {[%clk 0:00:07]} 24... Be6 {[%clk 0:01:34.2]}
25. Re1 {[%clk 0:00:02.2]} 25... Bd5+ {[%clk 0:01:32.1]} 26. f3 {[%clk
0:00:02.8]} 26... Rae8 {[%clk 0:01:30]} 27. Qd2 {[%clk 0:00:02]} 27... Re3
{[%clk 0:01:20.8]} 0-1